Cogmind - Beta 11.1 @@@ ROGUE MODE // 2022.09.22 @ 10:32:06 Player: Flerik Result: Destroyed by G-50 Soldier with Heavy Laser Performance ------------- Evolutions (3) 1500 Regions Visited (7) 1400 Robots Destroyed (12) 60 Value Destroyed (193) 193 Prototype IDs (2) 40 Alien Tech Used (0) 0 Bonus (121) 121 TOTAL SCORE: 3314 Bonus ------- Follower Combat Kills 121 Cogmind --------- Core Integrity 0/700 Matter 90/300 Energy 99/100 System Corruption 0% Temperature Cool (9) Movement Core (50) Location -7/Lower Caves Parts ------- > --- POWER (1) -------- (None) > --- PROPULSION (4) --- (None) > --- UTILITY (6) ------ Authchip [Armor] > --- WEAPON (2) ------- (None) > --- INVENTORY (5) ---- Light Ion Engine Medium Storage Unit Improved Sensor Array Improved Terrain Scanner Rocket Launcher Peak State ------------ > --- POWER ------------ Light Ion Engine > --- PROPULSION ------- Aluminum Leg Aluminum Leg VTOL Module > --- UTILITY ---------- Medium Storage Unit Improved Sensor Array Improved Terrain Scanner Improved Terrain Scan Processor Improved Melee Analysis Suite Hacking Suite > --- WEAPON ----------- Assault Rifle Heavy Missile Launcher > --- INVENTORY -------- Improved Ion Engine Authchip [Armor] Backup Laser I Slug Cannon Rocket Launcher Datajack [Rating: 28] Favorites ----------- Power Light Ion Engine Engine Light Ion Engine Propulsion Aluminum Leg Leg Aluminum Leg Flight Unit Flight Unit Utility Improved Terrain Scanner Device Improved Terrain Scanner Storage Medium Storage Unit Processor Improved Terrain Scan Processor Hackware Hacking Suite Weapon Assault Rifle Energy Gun EM Pulse Gun Ballistic Gun Assault Rifle Launcher Heavy Missile Launcher Build | -11 -10 -10 -10 -9 -8 -7 -7 ------- Run | Scr Mat Min Exi Min Mat Fac Low Slots Evolved 6 | . . . . . 4 2 . Power . | . . . . . . . . Propulsion 2 | . . . . . 2 . . Utility 4 | . . . . . 2 2 . Weapon . | . . . . . . . . Parts Attached 33 | 7 . . 3 1 8 10 4 Power 4 | 1 . . 1 . . 1 1 Engine 4 | 1 . . 1 . . 1 1 Core . | . . . . . . . . Reactor . | . . . . . . . . Propulsion 13 | 2 . . . . 6 3 2 Treads . | . . . . . . . . Leg 4 | 2 . . . . . 2 . Wheel . | . . . . . . . . Hover . | . . . . . . . . Flight 9 | . . . . . 6 1 2 Utility 10 | 2 . . 2 1 1 3 1 Device 3 | 1 . . . 1 . 1 . Storage 3 | 1 . . 2 . . . . Processor 2 | . . . . . 1 1 . Hackware 2 | . . . . . . 1 1 Protection . | . . . . . . . . Artifact . | . . . . . . . . Weapon 6 | 2 . . . . 1 3 . Energy Gun 3 | 1 . . . . 1 1 . Energy Cannon . | . . . . . . . . Ballistic Gun 2 | 1 . . . . . 1 . Ballistic Cannon . | . . . . . . . . Launcher 1 | . . . . . . 1 . Special Weapon . | . . . . . . . . Impact Weapon . | . . . . . . . . Slashing Weapon . | . . . . . . . . Piercing Weapon . | . . . . . . . . Special Melee Weapon . | . . . . . . . . Unidentified Prototypes . | . . . . . . . . Parts Lost 12 | . . . . . 6 4 2 Power 1 | . . . . . 1 . . Propulsion 8 | . . . . . 4 2 2 Utility . | . . . . . . . . Weapon 3 | . . . . . 1 2 . Highest Loss Streak 6 | . . . . . 6 3 2 To Critical Strikes . | . . . . . . . . Average Slot Usage (%) 79 | . 100 100 100 100 72 66 15 Engine 9 | . 14 14 14 14 9 4 . Leg 18 | . 28 28 28 28 1 13 . Flight 3 | . . . . . 34 . 7 Device 11 | . 14 14 14 14 9 12 . Storage 10 | . 14 14 14 14 9 7 . Processor 3 | . . . . . 2 9 . Hackware 2 | . . . . . . 4 7 Energy Gun 8 | . 14 14 14 14 6 4 . Ballistic Gun 9 | . 14 14 14 14 . 6 . Naked Turns . | . . . . . . . . Heaviest Build 24 | 13 13 13 18 18 16 24 . Greatest Support 20 | 20 20 20 20 20 16 20 12 Greatest Overweight (x) 5 | 3 . . . . 1 5 . Average Overweight (x) . | . . . . . . . . Largest Inventory Capacity 10 | 8 8 8 10 10 10 10 10 Average Capacity 8 | 7 8 8 8 10 10 10 5 Most Carried 10 | 3 8 8 8 10 10 10 9 Average Carried 6 | 1 6 7 8 9 9 5 5 Final Capacity 10 | 8 8 8 10 10 10 10 5 Final Carried 10 | 3 8 8 8 10 9 10 5 Class Distribution -------------------- 75% | Mutant 16% | Skirmisher 7% | Scavenger-Sprinter Dominant Class ---------------- Mutant | -10/Materials Mutant | -10/Mines Mutant | -10/Exiles Mutant | -9/Mines Scavenger-Sprinter | -8/Materials Skirmisher | -7/Factory Mutant | -7/Lower Caves Resources | -11 -10 -10 -10 -9 -8 -7 -7 ----------- Run | Scr Mat Min Exi Min Mat Fac Low Matter Collected 401 | 217 . 15 . 46 . 100 23 Remotely . | . . . . . . . . Salvage Created 183 | 29 52 . . 33 . 69 . Parts 26 | 4 7 . . 6 . 9 . Haulers Intercepted . | . . . . . . . . Recyclers Shooed . | . . . . . . . . Parts Field Recycled . | . . . . . . . . Retrieved Matter . | . . . . . . . . Parts Self-Destructed 2 | . . . . . . . 2 Prevented 1 | . . . . . . . 1 Kills | -11 -10 -10 -10 -9 -8 -7 -7 ------- Run | Scr Mat Min Exi Min Mat Fac Low Combat Hostiles Destroyed 6 | . 3 . . . . 3 . Guns 3 | . 3 . . . . . . AOE 3 | . . . . . . 3 . Classes Destroyed 5 | 1 1 . . 1 . 2 . Worker 3 | . . . . 1 . 2 . Builder 1 | . . . . . . 1 . Tunneler 2 | 1 . . . 1 . . . Swarmer 3 | . 3 . . . . . . Grunt 3 | . . . . . . 3 . Best Kill Streak 6 | 1 3 . . 1 . 6 . Combat Bots Only 3 | . 3 . . . . 3 . Max Kills in Single Turn 3 | 1 2 . . 1 . 3 . Gunslinging . | . . . . . . . . Exploded 2 | . . . . . . 2 . Melee . | . . . . . . . . Uniques/NPCs Destroyed . | . . . . . . . . Combat | -11 -10 -10 -10 -9 -8 -7 -7 -------- Run | Scr Mat Min Exi Min Mat Fac Low Damage Taken 1667 | . 118 . . 16 364 809 360 Core 855 | . 15 . . 8 129 379 324 Absorbed by Shields . | . . . . . . . . Regen/Repaired (Parts) 29 | . . . . . 29 . . Core Remaining (%) 88 | 100 . . . 90 76 . . Volleys Fired 33 | 5 8 . . 4 . 16 . Largest 2 | 2 2 . . 2 . 2 . Hottest 60 | 60 60 . . 60 . 59 . Shots Fired 53 | 8 16 . . 8 . 21 . Gun 49 | 8 16 . . 8 . 17 . Cannon . | . . . . . . . . Launcher 4 | . . . . . . 4 . Special . | . . . . . . . . Kinetic 31 | 3 8 . . 4 . 16 . Thermal 1 | . . . . . . 1 . Explosive 4 | . . . . . . 4 . Electromagnetic 17 | 5 8 . . 4 . . . Robot Hit Streak 7 | 4 7 . . 3 . 6 . Robot Miss Streak 4 | 3 2 . . 2 . 4 . Penetration Max . | . . . . . . . . Secondary Targets . | . . . . . . . . Shots Hit Robots 34 | 5 11 . . 5 . 13 . Core Hits 22 | 1 4 . . 2 . 15 . Critical Kills . | . . . . . . . . Critical Parts Destroyed 1 | 1 . . . . . . . Critical Strikes 2 | 1 1 . . . . . . Destroy 1 | 1 . . . . . . . Corrupt 1 | . 1 . . . . . . Melee Attacks . | . . . . . . . . Impact . | . . . . . . . . Slashing . | . . . . . . . . Piercing . | . . . . . . . . Sneak Attacks . | . . . . . . . . Combat Hostiles . | . . . . . . . . Follow-up Attacks . | . . . . . . . . Damage Inflicted 1036 | 95 135 . . 75 4 722 5 Guns 440 | 95 135 . . 63 . 147 . Cannons . | . . . . . . . . Explosions 575 | . . . . . . 575 . Melee . | . . . . . . . . Ramming 21 | . . . . 12 4 . 5 Kinetic 278 | 40 68 . . 23 . 147 . Thermal . | . . . . . . . . Explosive 575 | . . . . . . 575 . Electromagnetic 162 | 55 67 . . 40 . . . Impact . | . . . . . . . . Slashing . | . . . . . . . . Piercing . | . . . . . . . . Highest Corruption . | . . . . . . . . Average Corruption . | . . . . . . . . Corruption Purged . | . . . . . . . . Corruption Blocked . | . . . . . . . . Overload Shots . | . . . . . . . . Overflow Damage 1 | . . . . . . 1 . Projectiles . | . . . . . . . . Explosions 1 | . . . . . . 1 . Melee . | . . . . . . . . Knockbacks . | . . . . . . . . Impact . | . . . . . . . . Kinetic . | . . . . . . . . Secondary . | . . . . . . . . Self-Inflicted Damage 99 | . . . . . 2 95 2 Shots 3 | . . . . . . 3 . Rammed 3 | . . . . . 1 . 2 Targets Rammed 4 | . . . . 1 1 . 2 Kicked 1 | . . . . 1 . . . Crushed . | . . . . . . . . Highest Temperature 18 | . . . . . 18 2 . Average Temperature 5 | . . . . . 7 2 . Received Heat Transfer 684 | . 30 . . . 81 432 141 Siege Activations . | . . . . . . . . Robots Corrupted . | . . . . . . . . Combat Hostiles . | . . . . . . . . Parts Fried . | . . . . . . . . Impact Corruptions . | . . . . . . . . Robots Melted . | . . . . . . . . Combat Hostiles . | . . . . . . . . Parts Melted . | . . . . . . . . Heat Transferred . | . . . . . . . . Parts Sabotaged . | . . . . . . . . Parts Stolen . | . . . . . . . . Parts Stripped . | . . . . . . . . Power Chain Reactions . | . . . . . . . . Missiles Intercepted . | . . . . . . . . Alert | -11 -10 -10 -10 -9 -8 -7 -7 ------- Run | Scr Mat Min Exi Min Mat Fac Low Peak Influence 191 | 5 169 9 . 10 92 191 . Initial 25 | . 3 9 . . 3 25 . Average 42 | 1 86 9 . 6 35 59 . Maximum Alert Level . | . . . . . . . . Low Security (%) 100 | 100 100 100 . 100 100 100 . Level 1 . | . . . . . . . . Level 2 . | . . . . . . . . Level 3 . | . . . . . . . . Level 4 . | . . . . . . . . Level 5 . | . . . . . . . . High Security . | . . . . . . . . Max Security . | . . . . . . . . Squads Dispatched 10 | . 2 . . . 2 6 . Investigation 6 | . 1 . . . 1 4 . Extermination 1 | . . . . . . 1 . Reinforcement 3 | . 1 . . . 1 1 . Assault . | . . . . . . . . Garrison . | . . . . . . . . Intercept . | . . . . . . . . Searches Triggered . | . . . . . . . . Construction Impeded 1 | . . . . . . 1 . Haulers Reinforced . | . . . . . . . . Active Scanning Responses . | . . . . . . . . Cargo Convoy Interrupts . | . . . . . . . . Stealth | -11 -10 -10 -10 -9 -8 -7 -7 --------- Run | Scr Mat Min Exi Min Mat Fac Low Distress Signals 1 | . 1 . . . . . . Communications Jammed . | . . . . . . . . Distress Signals . | . . . . . . . . Times Spotted 55 | . 11 3 . 4 15 12 10 Peak Tracking Total 12 | . 5 1 . 4 12 4 5 Tactical Retreats 9 | . 2 . . . 2 2 3 Traps | -11 -10 -10 -10 -9 -8 -7 -7 ------- Run | Scr Mat Min Exi Min Mat Fac Low Traps Triggered 3 | . . . . . 1 2 . Indirectly . | . . . . . . . . Trap Hack Attempts . | . . . . . . . . Triggered . | . . . . . . . . Disarmed . | . . . . . . . . Reprogrammed . | . . . . . . . . Reused . | . . . . . . . . Traps Extracted . | . . . . . . . . Installed . | . . . . . . . . Triggered 2 | . . . . . . . 2 Machines | -11 -10 -10 -10 -9 -8 -7 -7 ---------- Run | Scr Mat Min Exi Min Mat Fac Low Machines Disabled . | . . . . . . . . Max in Single Turn . | . . . . . . . . Machines Sabotaged . | . . . . . . . . Garrisons Compromised . | . . . . . . . . Overloaded Fab Kills . | . . . . . . . . Hacking | -11 -10 -10 -10 -9 -8 -7 -7 --------- Run | Scr Mat Min Exi Min Mat Fac Low Machines Accessed 17 | . 3 . 4 . 3 6 1 Terminals 5 | . 3 . . . 1 1 . Fabricators 3 | . . . . . . 3 . Repair Stations 1 | . . . . . 1 . . Recycling Units 1 | . . . . . . 1 . Scanalyzers 2 | . . . . . 1 1 . Garrison Access . | . . . . . . . . Total Hacks 85 | . 9 . 49 . 14 12 1 Successful 73 | . 6 . 49 . 13 4 1 Failed 12 | . 3 . . . 1 8 . Catastrophic 2 | . . . . . . 2 . Database Lockouts . | . . . . . . . . Manual 14 | . 5 . . . 5 4 . Terminals 15 | . 9 . . . 5 1 . Fabricators 6 | . . . . . . 6 . Repair Stations 3 | . . . . . 3 . . Recycling Units 3 | . . . . . . 3 . Scanalyzers 8 | . . . . . 6 2 . Garrison Access . | . . . . . . . . Terminal Hacks 56 | . 4 . 49 . 2 . 1 Record 49 | . . . 49 . . . . Prototype ID Bank 1 | . 1 . . . . . . Open Door 1 | . . . . . . . 1 Level Access Points 1 | . . . . . 1 . . Alert Level 1 | . 1 . . . . . . Unreport Threat 1 | . 1 . . . . . . Recall Investigation 1 | . 1 . . . . . . Zone Layout 1 | . . . . . 1 . . Fabricator Hacks 1 | . . . . . . 1 . Build 1 | . . . . . . 1 . Repair Station Hacks 3 | . . . . . 3 . . Scan Component 1 | . . . . . 1 . . Repair 1 | . . . . . 1 . . Refit 1 | . . . . . 1 . . Recycling Unit Hacks . | . . . . . . . . Scanalyzer 8 | . . . . . 6 2 . Insert Component 3 | . . . . . 2 1 . Analyze 5 | . . . . . 4 1 . Garrison Access Hacks . | . . . . . . . . Unauthorized Hacks 5 | . 2 . . . 2 1 . Terminals 4 | . 2 . . . 2 . . Track 2 | . 1 . . . 1 . . Operators 2 | . 1 . . . 1 . . Fabricators 1 | . . . . . . 1 . Recompile 1 | . . . . . . 1 . Repair Stations . | . . . . . . . . Recycling Units . | . . . . . . . . Scanalyzers . | . . . . . . . . Garrison Access . | . . . . . . . . Data Cores Recovered . | . . . . . . . . Used . | . . . . . . . . Hacking Detections 7 | . 3 . . . 1 3 . Full Trace Events 4 | . 1 . . . . 3 . Feedback Events . | . . . . . . . . Feedback Blocked . | . . . . . . . . Robot Schematics Acquired . | . . . . . . . . Robots Built 3 | . . . . . . 3 . Authchips . | . . . . . . . . Time 58 | . . . . . . 58 . Total Robot Build Rating 9 | . . . . . . 9 . Part Schematics Acquired 3 | . . . . . 2 1 . Parts Built . | . . . . . . . . Authchips . | . . . . . . . . Time . | . . . . . . . . Total Part Build Rating . | . . . . . . . . Parts Repaired 1 | . . . . . 1 . . Time 26 | . . . . . 26 . . Parts Recycled . | . . . . . . . . Recycled Matter . | . . . . . . . . Retrieved Matter . | . . . . . . . . Retrieved Components . | . . . . . . . . Parts Scanalyzed 3 | . . . . . 2 1 . Part Schematics Acquired 3 | . . . . . 2 1 . Parts Damaged . | . . . . . . . . Bothacking | -11 -10 -10 -10 -9 -8 -7 -7 ------------ Run | Scr Mat Min Exi Min Mat Fac Low Used RIF Installer . | . . . . . . . . Robots Hacked . | . . . . . . . . Non-combat . | . . . . . . . . Combat . | . . . . . . . . Robot Hacks Applied . | . . . . . . . . Relay Couplers Released . | . . . . . . . . Fabnet Peak Effective % . | . . . . . . . . Robots Rewired . | . . . . . . . . Allies Hacked . | . . . . . . . . Hacks Repelled . | . . . . . . . . Allies | -11 -10 -10 -10 -9 -8 -7 -7 -------- Run | Scr Mat Min Exi Min Mat Fac Low Total Allies 3 | . . . . . . 3 . Largest Group 3 | . . . . . . 3 . Highest-Rated Group 48 | . . . . . . 48 . Highest-Rated Ally 16 | . . . . . . 16 . Total Orders . | . . . . . . . . Ally Attacks 32 | . . . . . . 32 . Total Damage 420 | . . . . . . 420 . Kills 3 | . . . . . . 3 . Allies Corrupted 1 | . . . . . . 1 . Allies Melted . | . . . . . . . . Intel | -11 -10 -10 -10 -9 -8 -7 -7 ------- Run | Scr Mat Min Exi Min Mat Fac Low Robot Analysis Total . | . . . . . . . . Derelict Logs Recovered 3 | . . 1 . 1 . . 1 Drone Launches . | . . . . . . . . Drone Recoveries . | . . . . . . . . Exploration | -11 -10 -10 -10 -9 -8 -7 -7 ------------- Run | Scr Mat Min Exi Min Mat Fac Low Turns Passed 2167 | 118 221 70 344 375 169 684 186 Spaces Moved 1828 | 71 154 58 283 290 219 342 411 Core 162 | 26 . . . . . 19 117 Treads . | . . . . . . . . Legs 1153 | 45 154 58 283 290 . 323 . Wheels . | . . . . . . . . Hover . | . . . . . . . . Flight 513 | . . . . . 219 . 294 Fastest Speed 31 | 50 120 120 120 120 31 120 35 Average Speed 93 | 130 120 120 120 120 32 127 42 Slowest Speed 300 | 200 120 120 120 120 117 300 50 Overloaded Moves . | . . . . . . . . Propulsion Burnouts . | . . . . . . . . Robots Hopped 6 | . . . . . 6 . . Cave-ins Triggered . | . . . . . . . . Exploration Rate (%) 33 | 5 37 16 63 77 22 15 31 Regions Visited 7 Branch Regions 4 Pre-discovered Areas 1 | . . . 1 . . . . Known Exits Taken 1 | . . . . . 1 . . Unknown Exits Taken 6 | 1 1 1 1 1 . 1 . Scrap Searched 1 | . . . . 1 . . . Spaces Dug . | . . . . . . . . Terrain Destroyed 33 | . . . . . . 33 . Melee . | . . . . . . . . Projectile . | . . . . . . . . AOE 33 | . . . . . . 33 . Terrain Rammed . | . . . . . . . . Walls Destroyed . | . . . . . . . . Machines Disabled . | . . . . . . . . Actions | -11 -10 -10 -10 -9 -8 -7 -7 --------- Run | Scr Mat Min Exi Min Mat Fac Low Total 2224 | 85 175 59 288 310 310 571 426 Wait 295 | . 5 . 1 8 84 194 3 Move 1810 | 70 153 57 282 289 207 341 411 Hop 5 | . . . . . 5 . . Pick Up 21 | 3 7 1 . 4 1 4 1 Fast Attach 14 | 7 . . . . 2 4 1 Attach 15 | . . . . . 6 6 3 Detach 7 | . . . . . 4 3 . Swap 4 | . . . 3 1 . . . Drop 16 | . 2 1 2 3 . 3 5 Fire 33 | 5 8 . . 4 . 16 . Melee . | . . . . . . . . Ram 3 | . . . . . 1 . 2 Kick 1 | . . . . 1 . . . Crush . | . . . . . . . . Escape Stasis . | . . . . . . . . Rewire . | . . . . . . . . Trap . | . . . . . . . . Miscellaneous . | . . . . . . . . Route ------- -11/Scrapyard -10/Materials -10/Mines -10/Exiles -9/Mines -8/Materials (discovered 3 exits: *Fac x3) -7/Factory -7/Lower Caves History --------- Turn | Location | Event 40 | -11/Scrapyard | Discovered new exit (range 15) 119 | -11/Scrapyard | Entered Materials 262 | -10/Materials | Met 8R-AWN 312 | -10/Materials | Build established: Mutant 315 | -10/Materials | Discovered new exit (range 13) 340 | -10/Materials | Entered Mines 342 | -10/Mines | Followed 8R-AWN into the Mines 374 | -10/Mines | Met a Derelict bent on vengeance 380 | -10/Mines | Learned Materials stockpile data 406 | -10/Mines | Discovered new exit (range 5) 410 | -10/Mines | Entered Exiles 440 | -10/Exiles | Welcomed by 8R-AWN 457 | -10/Exiles | Met EX-HEX 517 | -10/Exiles | Met EX-BIN 621 | -10/Exiles | Met EX-DEC 639 | -10/Exiles | Learned location of Zion (-6) 741 | -10/Exiles | Discovered new exit (range 12) 754 | -10/Exiles | Entered Mines 790 | -9/Mines | A weapon hastily lodged in a ceiling crevice suddenly fell to the ground 1089 | -9/Mines | Received a Rocket Launcher from a helpful Derelict 1120 | -9/Mines | Discovered new exit (range 6) 1124 | -9/Mines | Learned Materials security intel 1129 | -9/Mines | Entered Materials 1129 | -8/Materials | Evolved 4 slots: Propulsion x2, Utility x2 1169 | -8/Materials | Repaired EM Pulse Gun 1174 | -8/Materials | Identified exit to Factory 1298 | -8/Materials | Entered Factory 1298 | -7/Factory | Evolved 2 slots: Utility x2 1323 | -7/Factory | Lost 6 parts (1p4n1w) 1662 | -7/Factory | Fabricated G-47 Trooper (x3) 1750 | -7/Factory | Build established: Skirmisher 1946 | -7/Factory | Discovered new exit (range 10) 1975 | -7/Factory | Lost 3 parts (2n1w) 1982 | -7/Factory | Entered Lower Caves 1983 | -7/Lower Caves | Core integrity fell below 50% 2003 | -7/Lower Caves | Spotted B-75 Beast 2073 | -7/Lower Caves | Attracted the attention of an 0b10 checkpoint 2108 | -7/Lower Caves | Build established: Mutant 2128 | -7/Lower Caves | Core integrity fell below 20% 2168 | -7/Lower Caves | Destroyed by G-50 Soldier with Heavy Laser Last Messages --------------- 01986_ Dropped Datajack. 01986_ Dropped Med. Storage Unit. 01987_ Dropped Imp. Ion Engine. 01988_ Dropped Backup Laser I. 01988_ Acquired Med. Storage Unit. 02001_ Acquired derelict log, extracted data. Data stored: Upper Caves entrances (x1). 02010_ Connecting with WAR.Sys... 02010_ Current location identified: Lower Caves >>Open Door Sealed Heavy Doors opened. 02011_ Acquired Mak. Flight Unit. 02045_ Acquired 17 matter. 02073_ Y-54 Guardian: "INTERCEPTING UNREGISTERED DERELICT." 02083_ Mak. Flight Unit destroyed. 02108_ VTOL Module destroyed. 02108_ Knocked back. 02108_ Acquired 6 matter. 02122_ Slammed into Y-54 Guardian. 02166_ Critical hit (Burn: +37). Map ----- +----------------------------------------------------+ | | | | | | | | | ?????????????????????????????????????????????????? | | ?????????????????????????????????????????????????? | | ?????????????????????????????????????????????????? | | ?????????????????????????????????????????????????? | | ?????????????????????????????????????????????????? | | ?????????????????????????????????????????????????? | | ?????????????????????????????????????????????????? | | ?????????????????????????????????????????????????? | | ?????????????????????????????????????????????????? | | ?????????????????????????????????????????????????? | | ????????????????????????????????????????#######??? | | ??????????###???????##########??????????#"""""#??? | | ????????###!##??????# #??????????#"""""#??? | | ????????#X# !#??????# #??????????#"""""???? | | ????????# [#??????# """" #?????###???# #???? | | ????????# #!####????# """" #????## ##?## ##??? | | ????????# ### ##???# """" #????# ??# * ##?? | | ????????## ## ##??# "" #???## #??#/] [ ##? | | ?????????# ## #??# "" #???# #??# #? | | ##### ##?# # #??# """" ##??# ##### #? | | ## #### "" #### ### ### ##? | | ????# @ g ## #?# #?? | | ?####### #### #### g ### #?? | | ###"# ##??# ###### ## g #?? | | ######???# ## ##### #?? | | "########????????##### ### ####### ####?? | | #??????????????###???# #?# # #####?? | | #?????????#???## ##?# #?# ##### ## ## #?? | | #?????????? ## ### ### #?????## ##? | | #####???????# ## ## #??????## #? | | # ###????? #??# #### #? | | ##???????????# ##### ##? | | #???????????## ## ####### #?? | | #?????????????# ###??# ##? | | ####????????????## #??### #? | | ##??????????????## #????### #? | | ###?????########### #??????# #? | | ??????### ### ##?????# #? | | ??????# #?###### #?????# #? | | #?????# ##?????# ###????## #? | | ##????# #????## ##????### ## | | ##???# #??### ##????## # | | ##### # #### #????## # | | # ###????# # | | ## # ##?????## ### # | | # ### #????### ##?#### | +----------------------------------------------------+ Best States ------------- Heat Dissipation 34 Energy Generation 10 Energy Capacity 125 Matter Stores 245 Matter Capacity 300 Sight Range 16 Robot Scan Range 15 Terrain Scan Range 16 Terrain Scan Density 110 Evasion (%) 63 Melee Accuracy 6 Offensive Hacking 10 Authchip Count 1 Item Schematics ----------------- Flight Unit | -8/Materials | Scanalyzed Datajack | -8/Materials | Scanalyzed VTOL Module | -7/Factory | Scanalyzed Robot Schematics ------------------ None Fabricated ------------ G-47 Trooper | x3 | -7/Factory | Preloaded Alien Tech Used ----------------- None Achievements -------------- GoHome() My Command Is Your Wish Party Time Challenges ------------ None Game ------ Seed SwordSurveybotVibroblade Manual? 0 Play Time 00:23:37 Cumulative 31.3 hours Start 2022.09.22 @ 10:10:44 End 2022.09.22 @ 10:32:06 Sessions 1 Manual Loads 0 Difficulty Rogue Special Mode None Game No. 52 Rogue 51 Adventurer 1 Explorer 0 Win Type - Total 1 Types 1/0/0/0/0/0/0/0/0 Lore% 37 Gallery% 37 Achievement% 35 Wizard Run 0 Options --------- ASCII 0 Keyboard 0 Movement Numpad Keybinds 0 Fullscreen 1 Font 18/SmallcapsGlow Map View 76x50 Tactical HUD 1 Map Filters NONE Filters NONE Steam 1 RUN: 81f4dd08-fbf3-4cde-9193-7823e4323476